bitfinex-derivatives/quotes_ETHF0:USTF0_20250104
["timestamp","ask_amount","ask_price","bid_price","bid_amount"]
[1736009782161,0.27586,3625.6,3625.5,0.27586]
[1736009782568,0.27586,3625.5,3625.4,0.27587]
[1736009783873,0.9558,3625.6,3625.3,5.28649771]
[1736009784070,0.9558,3625.6,3625.5,0.27586]
[1736009784271,0.27587,3625.4,3625.3,3.48367]
[1736009784570,0.9558,3625.6,3625.3,3.48367]
[1736009784774,0.27586,3625.5,3625.3,3.48367]
[1736009784969,0.27586,3625.5,3625.4,0.27587]
[1736009785168,4.48142339,3625.6,3625.4,0.27587]
[1736009785476,4.20556339,3625.6,3625.4,0.27586]
[1736009786276,3.24976339,3625.5,3625.4,0.27586]
[1736009787279,3.24976339,3625.5,3625.0,2.54679771]
[1736009787479,0.27587,3625.4,3625.1,0.27589]
[1736009789075,2.16830119,3625.2,3625.1,0.27589]
[1736009789271,2.16830119,3625.2,3624.9,0.4566]
[1736009789579,0.9996,3625.1,3625.0,0.2759]
[1736009789883,1.27549,3625.1,3624.8,3.48371]
[1736009790080,0.4783,3625.0,3624.8,3.48371]
[1736009790481,0.4783,3625.0,3624.9,0.27591]
[1736009791683,3.72806339,3625.0,3624.9,0.27591]
[1736009793981,3.72806339,3625.0,3624.8,3.2078]
[1736009794279,4.00396339,3625.0,3624.8,3.48371]
[1736009794587,3.72806339,3625.0,3624.9,0.27591]
[1736009795282,3.72806339,3625.0,3624.8,3.2078]
[1736009795489,0.27591,3624.9,3624.8,3.2078]
[1736009797688,0.27591,3624.9,3624.8,3.48371]
[1736009798093,3.52567339,3624.9,3624.8,3.48371]
[1736009798286,3.52567339,3624.9,3624.8,3.2078]
[1736009799398,3.72806339,3625.0,3624.5,0.74073]
[1736009799800,3.72806339,3625.0,3624.5,0.27593]
[1736009800099,0.27593,3624.6,3624.5,0.27593]
[1736009800290,0.27593,3624.6,3624.3,0.5094]
[1736009800597,0.4804,3624.5,3624.4,0.27594]
[1736009801196,0.4804,3624.5,3624.0,3.2078]
[1736009801394,0.4616,3624.4,3623.9,6.44994659]
[1736009801595,0.27595,3624.3,3624.0,0.27597]
[1736009801801,0.27596,3624.2,3624.0,0.27597]
[1736009802298,0.4777,3624.1,3624.0,0.27597]
[1736009802498,0.4777,3624.1,3623.9,0.27598]
[1736009802700,0.76108,3624.0,3623.7,7.52985242]
[1736009802890,0.76108,3624.0,3623.7,6.93724659]
[1736009802891,0.27599,3623.9,3623.7,6.93724659]
[1736009803404,0.27599,3623.8,3623.7,6.44994659]
[1736009803800,0.27601,3623.5,3623.4,6.44994659]
[1736009804402,0.76111,3623.5,3623.4,6.44994659]
[1736009805502,0.4851,3623.5,3623.4,6.44994659]
[1736009805703,0.4851,3623.5,3623.4,6.72596659]
[1736009805910,3.24976339,3623.6,3623.3,0.9453]
[1736009806209,3.24976339,3623.6,3623.5,0.27601]
[1736009807001,1.113,3623.8,3623.6,0.276]
[1736009809003,0.276,3623.7,3623.4,2.35471771]
[1736009809202,1.113,3623.8,3623.3,0.9453]
[1736009809710,1.113,3623.8,3623.4,0.27602]
[1736009809911,0.276,3623.7,3623.3,1.22132]
[1736009810206,0.27601,3623.6,3623.3,0.9453]
[1736009812607,0.27602,3623.5,3623.3,0.9453]
[1736009813198,1.113,3623.8,3623.3,0.9453]
[1736009813607,1.113,3623.8,3623.3,1.22133]
[1736009813803,0.276,3623.7,3623.3,0.9453]
[1736009814110,0.276,3623.7,3623.4,0.27602]
[1736009814404,1.113,3623.8,3623.4,5.28649771]
[1736009814605,1.113,3623.8,3623.5,0.27601]
[1736009814907,1.113,3623.8,3623.4,5.28649771]
[1736009814908,1.23779,3623.9,3623.6,0.276]
[1736009815109,4.59777,3624.0,3623.7,0.27599]
[1736009815307,4.59777,3624.0,3623.8,0.4795]
[1736009816308,1.114,3624.1,3623.8,0.4795]
[1736009816507,1.114,3624.2,3624.0,0.27597]
[1736009816811,1.114,3624.2,3624.1,0.4947]
[1736009817013,1.114,3624.2,3623.8,3.6873]
[1736009817211,1.38996,3624.2,3623.9,1.27258]
[1736009820714,1.114,3624.2,3624.0,0.27597]
[1736009821313,1.4682,3624.6,3624.0,2.07869771]
[1736009821513,1.114,3624.5,3624.3,0.27595]
[1736009821908,1.114,3624.5,3624.4,0.5011]
[1736009822916,3.2078,3624.8,3624.4,0.5011]
[1736009823216,3.2078,3624.8,3624.6,0.27592]
[1736009823513,0.27591,3624.9,3624.6,0.27592]
[1736009824914,8.8544,3625.0,3624.5,0.9641]
[1736009825119,0.27591,3624.8,3624.5,1.24003]
[1736009825615,8.8544,3625.0,3624.5,1.24003]
[1736009825616,0.27591,3624.9,3624.6,0.27592]
[1736009826219,8.8544,3625.0,3624.5,0.9641]
[1736009826516,1.6114,3625.0,3624.8,0.27591]
[1736009826919,1.6114,3625.0,3624.9,0.4722]
[1736009827121,1.8873,3625.0,3624.9,0.4722]
[1736009828620,0.4984,3625.0,3624.9,0.4722]
[1736009829822,0.4984,3625.0,3624.8,0.27591]
[1736009830120,0.4984,3625.0,3624.9,0.4593]
[1736009830524,3.27710211,3625.3,3624.9,0.4593]
[1736009831025,3.55298211,3625.3,3625.0,0.2759]
[1736009831717,1.38888,3625.3,3625.0,0.2759]
[1736009833920,0.27589,3625.2,3625.0,0.2759]
[1736009834228,0.27589,3625.2,3624.9,0.7352]
[1736009834521,0.27589,3625.2,3625.0,0.2759]
[1736009835019,1.38888,3625.3,3625.0,0.2759]
[1736009835928,3.55298211,3625.3,3625.0,0.2759]
[1736009837222,1.38888,3625.3,3625.0,0.2759]
[1736009837628,0.27589,3625.2,3625.0,0.2759]
[1736009837828,0.27589,3625.2,3624.9,0.7352]
[1736009838027,0.27589,3625.2,3624.9,0.4593]
[1736009838430,0.27589,3625.2,3625.0,0.2759]
[1736009840023,0.27589,3625.2,3624.9,0.4593]
[1736009840233,0.27589,3625.2,3624.9,0.7352]
[1736009841730,3.73140211,3625.4,3624.9,0.7352]
[1736009841931,0.27594,3624.5,3624.2,3.2078]
[1736009842224,3.2078,3624.8,3624.3,0.4467]
[1736009842437,0.73224,3624.4,3624.3,0.4467]
[1736009843027,0.73224,3624.4,3624.3,0.72265]
[1736009844032,0.73224,3624.4,3624.3,0.4467]
[1736009844331,0.73224,3624.4,3624.3,0.72265]
[1736009844936,0.4563,3624.4,3624.3,0.72265]
[1736009845329,0.73224,3624.4,3624.3,0.72265]
[1736009845622,0.4563,3624.4,3624.3,2.80134771]
[1736009848727,0.4563,3624.4,3624.3,2.52539771]
[1736009848929,0.73224,3624.4,3624.3,2.52539771]
[1736009849334,0.73224,3624.4,3624.3,0.4467]
[1736009850037,0.73224,3624.4,3624.2,3.2078]
[1736009850038,0.27595,3624.3,3624.2,3.2078]
[1736009850929,0.73225,3624.4,3624.2,3.2078]
[1736009851534,0.73225,3624.4,3624.2,3.48376]
[1736009852933,0.4563,3624.4,3624.3,0.27595]
[1736009853131,0.4563,3624.4,3624.3,0.73675]
[1736009860735,2.44004211,3624.5,3624.3,0.73675]
[1736009860935,2.16410211,3624.5,3624.1,3.2078]
[1736009861138,0.27596,3624.3,3624.1,3.2078]
[1736009861444,0.27596,3624.3,3624.1,3.48377]
[1736009862039,0.27596,3624.2,3624.1,3.48377]
[1736009862240,0.27596,3624.3,3624.1,4.4891216]
[1736009863145,2.44006211,3624.2,3624.1,4.4891216]
[1736009864945,2.44006211,3624.2,3624.1,4.2131516]
[1736009865443,2.16410211,3624.2,3623.8,4.30275977]
[1736009865745,0.27599,3623.8,3623.7,6.44994659]
[1736009865945,0.27599,3623.8,3623.7,7.45529819]
[1736009867248,2.44009211,3623.8,3623.7,1.0053516]
[1736009868143,2.44009211,3623.8,3623.4,4.31749003]
[1736009868144,3.16945371,3623.8,3623.4,4.31749003]
[1736009868444,0.27601,3623.5,3623.4,4.31749003]
[1736009869250,2.16410211,3623.8,3623.4,4.59351003]
[1736009869451,0.27601,3623.6,3623.4,4.59351003]
[1736009869644,0.9397,3623.5,3623.4,4.59351003]
[1736009869845,1.4196,3623.5,3623.4,4.59351003]
[1736009870242,3.58370211,3623.5,3623.4,0.27602]
[1736009870748,3.09890211,3623.5,3623.4,0.27602]
[1736009871642,2.16410211,3623.7,3623.3,3.2078]
[1736009871844,2.64400211,3623.7,3623.3,3.2078]
[1736009872149,2.92000211,3623.7,3623.5,0.27601]
[1736009873544,2.92000211,3623.7,3623.3,3.2078]
[1736009873745,2.92000211,3623.7,3623.4,0.27602]
[1736009874255,2.92000211,3623.7,3623.3,3.2078]
[1736009874256,2.92000211,3623.7,3623.5,0.27601]
[1736009874646,2.92000211,3623.7,3623.6,0.4495]
[1736009877061,2.64400211,3623.7,3623.6,0.72551]
[1736009877360,0.4799,3623.7,3623.6,0.4495]
[1736009877560,0.7559,3623.7,3623.6,0.4495]
[1736009879159,0.4799,3623.7,3623.6,0.4495]
[1736009879348,0.4799,3623.7,3623.6,0.72551]
[1736009879552,0.7559,3623.7,3623.6,0.4495]
[1736009883660,0.7559,3623.7,3623.6,0.72551]
[1736009883661,0.4799,3623.7,3623.6,0.72551]
[1736009884859,2.64890211,3623.8,3623.6,0.72551]
[1736009885059,0.76079,3623.8,3623.6,0.72551]
[1736009886463,2.92489211,3623.8,3623.6,0.4495]
[1736009889263,0.276,3623.7,3623.6,0.4495]
[1736009892776,2.44010211,3623.7,3623.6,0.4495]
[1736009892971,2.16410211,3623.7,3623.6,0.4495]
[1736009894171,2.44010211,3623.7,3623.6,0.4495]
[1736009894376,0.276,3623.7,3623.6,0.4495]
[1736009895676,2.44010211,3623.7,3623.6,0.4495]
[1736009898670,0.276,3623.7,3623.6,0.4495]
[1736009900374,3.2078,3623.7,3623.1,5.32318518]
[1736009900681,1.00569515,3623.6,3623.1,5.32318518]
[1736009900878,0.27604,3623.2,3623.1,5.32318518]
[1736009901479,0.27604,3623.2,3623.1,1.00569515]
[1736009902880,0.27604,3623.1,3623.0,5.32318518]
[1736009903373,0.27604,3623.1,3623.0,1.00569515]
[1736009905082,2.16880732,3623.1,3623.0,1.00569515]
[1736009905378,2.16880732,3623.1,3623.0,1.28174515]
[1736009906178,0.27604,3623.2,3623.1,0.27604]
[1736009907480,0.27604,3623.2,3623.0,5.32318518]
[1736009907481,0.27604,3623.1,3623.0,1.28174515]
[1736009907681,2.44484732,3623.2,3623.1,0.27604]
[1736009910471,2.91674732,3623.2,3623.1,0.27604]
[1736009911680,0.4719,3623.2,3623.1,0.27604]
[1736009912979,0.74794,3623.2,3623.1,0.27604]
[1736009913380,0.74794,3623.2,3623.1,4.59353003]
[1736009914478,3.72166339,3623.2,3623.1,0.27604]
[1736009916783,3.24976339,3623.2,3623.1,0.74554]
[1736009918283,2.17115483,3623.2,3623.1,5.06303003]
[1736009920584,2.17115483,3623.2,3623.1,4.59353003]
[1736009920986,3.24976339,3623.2,3623.0,8.53098518]
[1736009921187,0.27604,3623.1,3623.0,7.52529003]
[1736009921990,0.27604,3623.1,3623.0,7.80134003]
[1736009922595,0.27604,3623.1,3623.0,3.48385]
[1736009922989,4.3360814,3623.2,3623.1,0.27604]
[1736009924198,0.27604,3623.2,3623.0,3.48385]
[1736009924391,1.28173515,3623.2,3623.0,3.48385]
[1736009924793,1.00569515,3623.2,3623.0,3.2078]
[1736009925095,1.00569515,3623.2,3623.1,0.27604]
[1736009925392,4.6121114,3623.3,3623.1,0.27604]
[1736009925393,4.3360814,3623.3,3623.1,0.27604]
[1736009925790,4.3360814,3623.3,3623.0,1.00569515]
[1736009925990,4.3360814,3623.3,3623.1,0.27604]
[1736009926485,4.3360814,3623.3,3623.2,0.27604]
[1736009927788,4.3360814,3623.3,3623.2,1.28173515]
[1736009928096,5.7679814,3623.4,3623.3,0.27603]
[1736009929401,0.9455,3623.4,3623.3,0.27603]
[1736009931103,4.20103394,3623.4,3623.3,0.27603]
[1736009932599,3.74433394,3623.4,3623.3,0.27603]
[1736009933698,0.4888,3623.4,3623.3,0.27603]
[1736009935006,3.74433394,3623.4,3623.3,0.27603]
[1736009937905,1.74433394,3623.4,3623.3,0.27603]
[1736009938097,4.3360814,3623.6,3623.2,1.49179515]
[1736009938402,4.3360814,3623.6,3623.5,0.27601]
[1736009938599,4.3360814,3623.6,3623.4,0.27601]
[1736009938998,0.27602,3623.5,3623.2,0.27603]
[1736009939203,0.27602,3623.4,3623.2,0.27603]
[1736009940901,4.3360814,3623.3,3623.2,0.27603]
[1736009943204,4.3360814,3623.4,3623.1,5.80388518]
[1736009943501,4.3360814,3623.4,3623.3,1.28172515]
[1736009945913,4.6121014,3623.4,3623.3,1.00569515]
[1736009946207,4.6121014,3623.4,3623.2,0.27603]
[1736009946402,4.6121014,3623.4,3623.1,6.07992518]
[1736009946998,4.3360814,3623.3,3623.2,0.27603]
[1736009948612,4.6121214,3623.3,3623.1,5.32318518]
[1736009948814,1.17544,3623.2,3623.1,5.32318518]
[1736009949112,0.8994,3623.2,3623.1,5.59922518]
[1736009949415,5.2354814,3623.2,3623.1,1.28173515]
[1736009950014,4.7862814,3623.2,3623.1,1.28173515]
[1736009950912,4.3360814,3623.2,3623.1,1.28173515]
[1736009951807,4.6121014,3623.4,3623.2,0.27603]
[1736009952012,4.3360814,3623.4,3623.3,1.28172515]
[1736009953713,4.3360814,3623.4,3623.3,1.75952515]
[1736009954718,4.3360814,3623.4,3623.3,2.23032515]
[1736009956416,6.32123513,3623.6,3623.3,1.95429515]
[1736009956417,4.3360814,3623.5,3623.3,1.95429515]
[1736009956616,4.3360814,3623.5,3623.4,0.27602]
[1736009962323,5.5114914,3623.6,3623.4,0.27602]
[1736009963526,4.3360814,3623.5,3623.4,0.27602]
[1736009968732,4.3360814,3623.5,3623.1,4.31749003]
[1736009969036,0.4796,3623.4,3623.3,4.59352003]
[1736009970636,0.4796,3623.4,3623.3,0.27603]
[1736009970637,4.8156814,3623.4,3623.3,0.27603]
[1736009974136,5.0917014,3623.4,3623.3,0.27603]
[1736009974334,0.27603,3623.3,3623.2,5.32318518]
[1736009976738,0.27603,3623.3,3623.2,5.59922518]
[1736009977439,4.3360814,3623.4,3623.3,0.27603]
[1736009978337,4.3360814,3623.4,3623.3,4.59352003]
[1736009979638,5.5114914,3623.6,3623.5,0.27601]
[1736009979837,5.5114914,3623.6,3623.5,1.28170515]
[1736009980134,5.2354814,3623.6,3623.5,1.28170515]
[1736009980432,5.5114914,3623.6,3623.4,0.27602]
[1736009980936,0.8994,3623.6,3623.5,0.27601]
[1736009981532,0.8994,3623.6,3623.5,1.28170515]
[1736009982435,0.8994,3623.6,3623.5,1.75300515]
[1736009986537,0.8994,3623.6,3623.5,1.28170515]
[1736009986939,5.24452338,3623.6,3623.5,1.28170515]
[1736009988445,0.8994,3623.6,3623.5,1.28170515]
[1736009991736,5.24467193,3623.6,3623.5,1.28170515]
[1736009995749,0.8994,3623.6,3623.5,1.28170515]
[1736009996543,0.8994,3623.6,3623.5,1.00569515]
[1736009997043,0.27601,3623.5,3623.4,4.32400721]
[1736009997346,5.11289515,3623.6,3623.3,4.32400721]
[1736009997646,1.75721515,3623.4,3623.3,4.32400721]
[1736009999051,0.27604,3623.1,3623.0,4.32400721]
[1736009999644,6.90303028,3623.4,3623.0,4.32400721]
[1736009999849,5.89733513,3623.4,3623.2,1.28172515]
[1736010000151,6.17335513,3623.4,3623.2,1.28172515]
[1736010000444,5.89733513,3623.4,3623.2,1.28172515]
[1736010000745,5.42183513,3623.4,3623.3,0.27603]
[1736010001251,4.34523212,3623.4,3623.2,1.00569515]
[1736010001442,4.34523212,3623.4,3623.3,0.27603]
[1736010002042,2.45923212,3623.4,3623.3,1.28172515]
[1736010002251,0.97603212,3623.4,3623.3,1.28172515]
[1736010002549,0.97603212,3623.4,3623.3,0.27603]
[1736010002748,3.25845806,3623.5,3623.4,0.27602]
[1736010002939,3.25845806,3623.5,3623.4,0.76322]
[1736010003144,3.53446806,3623.5,3623.4,1.00569515]
[1736010003355,4.36745806,3623.5,3623.3,11.32355447]
[1736010003546,2.18551515,3623.4,3623.3,11.32355447]
[1736010003952,1.90949515,3623.4,3623.2,8.65255062]
[1736010004149,0.75443,3623.3,3623.2,8.65255062]
[1736010005353,0.75443,3623.3,3623.0,0.27605]
[1736010006149,0.4784,3623.3,3622.9,4.32698034]
[1736010006350,0.27605,3623.0,3622.9,4.32698034]
[1736010006852,0.27606,3622.9,3622.8,6.49047052]
[1736010007157,1.22806,3622.9,3622.8,6.49047052]
[1736010007551,1.22806,3622.9,3622.8,5.74887052]
[1736010008059,0.27609,3622.5,3622.4,4.32842608]
[1736010009054,0.27609,3622.5,3622.2,4.60453608]
[1736010009348,0.2761,3622.3,3622.2,4.32842608]
[1736010010250,0.7574,3622.3,3622.0,4.60454608]
[1736010010646,1.2057,3622.3,3622.0,4.60454608]
[1736010011043,0.9296,3622.3,3622.0,4.32842608]
[1736010011247,2.63414564,3622.4,3622.2,0.27611]
[1736010011660,2.63414564,3622.4,3622.3,0.4468]
[1736010012556,0.4642,3622.4,3622.3,0.4468]
[1736010012851,2.16994564,3622.5,3622.4,0.2761]
[1736010013650,2.16994564,3622.6,3622.3,0.4468]
[1736010013952,2.16994564,3622.6,3622.5,2.3568923]
[1736010014353,3.25491846,3622.8,3622.5,2.0808023]
[1736010014652,1.83171846,3622.8,3622.7,3.48387]
[1736010014855,1.83171846,3622.8,3622.7,8.48387]
[1736010015055,1.83171846,3623.5,3623.4,0.27602]
[1736010016554,1.2174,3623.7,3623.6,0.27601]
[1736010016855,0.9414,3623.7,3623.3,2.0808023]
[1736010017047,0.27601,3623.6,3623.5,0.27601]
[1736010017251,0.9414,3623.7,3623.5,0.27601]
[1736010017455,0.27601,3623.6,3623.5,0.27601]
[1736010017755,0.9414,3623.7,3623.6,0.27601]
[1736010018759,0.4862,3623.7,3623.6,0.27601]
[1736010019458,0.4862,3623.7,3623.6,3.48381]
[1736010019656,0.4862,3623.7,3623.6,0.27601]
[1736010021356,0.4862,3623.7,3623.6,5.5646123]
[1736010021858,0.4883,3623.9,3623.6,5.2886023]
[1736010022159,2.969,3626.5,3624.5,0.27594]
[1736010022160,5.42183513,3624.6,3624.5,0.27594]
[1736010023551,0.9613,3624.8,3624.3,3.2078]
[1736010024154,0.9613,3624.8,3624.6,0.27592]
[1736010024657,1.23722,3624.8,3624.5,0.27593]
[1736010025162,0.9613,3624.8,3624.6,0.27593]
[1736010027559,1.23722,3624.8,3624.5,0.27593]
[1736010027860,2.34522,3624.8,3624.5,0.27593]
[1736010028558,1.23722,3624.8,3624.5,0.27593]
[1736010028759,2.0693,3624.8,3624.5,0.27593]
[1736010028959,2.34522,3624.8,3624.4,0.27594]
[1736010029163,2.34522,3624.8,3624.5,0.27593]
[1736010029861,5.2771,3624.8,3624.3,0.27594]
[1736010030057,0.27593,3624.6,3624.3,0.27594]
[1736010030563,0.27593,3624.7,3624.3,0.27595]
[1736010030764,0.27593,3624.7,3624.4,0.27594]
[1736010031065,1.38393,3624.7,3624.4,0.27594]
[1736010031554,1.38393,3624.7,3623.9,5.2886023]
[1736010031555,1.108,3624.7,3624.6,0.27593]
[1736010032148,0.9613,3624.8,3624.7,0.27592]
[1736010032754,3.2078,3625.6,3624.7,0.27592]
[1736010032755,3.48366,3625.6,3624.7,0.27592]
[1736010032957,0.4552,3625.2,3625.1,0.27589]
[1736010035663,0.4552,3625.2,3625.0,0.27589]
[1736010036160,0.4552,3625.2,3625.1,0.27589]
[1736010036369,0.4552,3625.2,3625.0,0.2759]
[1736010036766,0.4552,3625.2,3625.1,0.27589]
[1736010037666,0.4552,3625.2,3624.8,3.2078]
[1736010038068,0.4552,3625.2,3625.1,0.27589]
[1736010043364,0.955,3625.5,3624.9,2.0808023]
[1736010043668,0.955,3625.5,3625.4,0.27587]
[1736010043866,0.955,3625.5,3625.3,0.27587]
[1736010044472,0.955,3625.5,3625.4,0.27587]
[1736010045270,0.955,3625.5,3625.2,3.2078]
[1736010045471,0.27587,3625.4,3625.1,0.27589]
[1736010045770,1.23086,3625.5,3625.2,0.27588]
[1736010047977,0.27587,3625.4,3625.2,0.27588]
[1736010048275,1.23086,3625.5,3625.2,0.27588]
[1736010049673,0.955,3625.5,3624.9,2.0808023]
[1736010049874,0.955,3625.5,3624.6,5.2886023]
[1736010050072,0.2759,3625.1,3624.8,0.27591]
[1736010050271,0.2759,3625.1,3624.6,5.2886023]
[1736010050572,0.4875,3625.0,3624.9,0.2759]
[1736010051271,0.4875,3625.0,3624.8,0.27591]
[1736010051473,0.4602,3624.9,3624.8,0.27591]
[1736010052281,0.4602,3624.9,3624.6,3.2078]
[1736010052472,0.4602,3624.9,3624.7,0.27592]
[1736010052473,0.76972,3624.8,3624.7,0.27592]
[1736010053080,0.27592,3624.7,3624.6,3.48372]
[1736010053276,0.4938,3624.8,3624.7,0.27592]
[1736010054677,0.76971,3624.8,3624.7,0.27592]
[1736010055175,0.4938,3624.8,3624.7,0.27592]
[1736010060284,0.27592,3624.7,3624.5,0.27593]
[1736010060481,0.4938,3624.8,3624.3,2.0808023]
[1736010060785,0.76972,3624.8,3624.7,0.27592]
[1736010061585,0.4938,3624.8,3624.7,0.27592]
[1736010062489,0.27593,3624.6,3624.5,0.27593]
[1736010063182,0.4938,3624.8,3624.2,7.53622608]
[1736010063484,0.4679,3624.5,3624.4,0.27594]
[1736010063787,0.4679,3624.5,3624.2,3.2078]
[1736010063984,0.27596,3624.3,3624.2,0.27595]
[1736010064185,0.27596,3624.3,3624.0,4.32842608]
[1736010064186,0.4679,3624.5,3624.0,4.32842608]
[1736010064387,0.27597,3624.1,3624.0,2.85742608]
[1736010064581,0.27597,3624.1,3623.6,8.65255062]
[1736010064582,3.1878023,3624.1,3623.6,8.65255062]
[1736010064784,0.276,3623.7,3623.6,8.65255062]
[1736010064990,5.2886023,3623.8,3623.2,8.65255062]
[1736010065293,0.27601,3623.6,3623.3,0.27603]
[1736010066891,9.61018751,3623.8,3623.3,0.27603]
[1736010067094,7.52938521,3623.8,3622.9,0.4524]
[1736010067394,7.52938521,3623.8,3623.7,0.276]
[1736010067591,3.2078,3623.8,3623.7,0.276]
[1736010070791,1.5672,3623.9,3623.7,0.276]
[1736010072291,1.5672,3623.9,3623.6,0.276]
[1736010073399,1.84318,3623.9,3623.6,0.276]
[1736010073599,1.5672,3623.9,3623.6,0.276]
[1736010073802,1.84319,3623.9,3623.6,0.276]
[1736010075897,1.5672,3623.9,3623.5,0.27601]
[1736010076102,1.5672,3623.9,3623.6,0.276]
[1736010076302,1.5672,3623.9,3623.1,5.2886023]
[1736010076604,0.27601,3623.6,3623.2,0.27603]
[1736010076798,0.9156,3623.5,3623.2,0.27603]
[1736010077105,0.9156,3623.5,3622.7,3.52459798]
[1736010077302,0.27604,3623.2,3623.0,0.27605]
[1736010077507,1.38404,3623.2,3623.0,0.27605]
[1736010078300,1.38404,3623.2,3622.7,3.2078]
[1736010078301,0.27607,3622.8,3622.7,3.2078]
[1736010079803,5.0,3622.8,3621.9,6.74879044]
[1736010079996,5.2886023,3622.5,3621.9,6.47266044]
[1736010080203,5.2886023,3622.5,3621.8,3.2078]
[1736010080204,1.107,3622.4,3622.1,0.27611]
[1736010080399,1.107,3622.4,3622.2,0.27611]
[1736010081499,3.2078,3622.5,3622.4,0.2761]
[1736010081700,4.3158,3622.5,3622.4,0.2761]
[1736010082208,4.3158,3622.5,3622.2,0.4579]
[1736010082409,4.59189,3622.5,3622.2,0.27611]
[1736010083105,4.3158,3622.5,3622.3,0.2761]
[1736010083308,4.3158,3622.5,3621.9,0.8971]
[1736010083706,4.3158,3622.5,3622.3,0.2761]
[1736010084108,4.3158,3622.5,3622.4,0.2761]
[1736010085102,4.3158,3622.5,3621.9,0.8971]
[1736010085309,4.3158,3622.5,3622.3,0.2761]
[1736010088509,0.2761,3622.4,3622.1,0.27612]
[1736010089511,0.2761,3622.4,3621.9,0.8971]
[1736010089512,4.3158,3622.5,3621.9,0.4579]
[1736010089914,0.27611,3622.3,3622.0,0.27612]
[1736010090107,0.2761,3622.4,3622.1,0.27611]
[1736010090511,4.3158,3622.5,3622.0,0.4483]
[1736010090512,4.59189,3622.5,3622.2,0.27611]
[1736010092114,0.2761,3622.4,3622.1,2.3569223]
[1736010092711,0.2761,3622.4,3622.2,0.27611]
[1736010093411,3.2078,3622.5,3622.1,2.0808023]
[1736010093612,3.2078,3622.5,3622.4,0.2761]
[1736010094914,3.2078,3622.5,3622.1,2.0808023]
[1736010095116,3.2078,3622.5,3622.3,0.2761]
[1736010096117,3.48389,3622.5,3622.2,0.27611]
[1736010096312,3.2078,3622.5,3622.2,0.27611]
[1736010096508,3.48389,3622.5,3622.1,2.0808023]
[1736010096714,3.2078,3622.5,3622.1,2.0808023]
[1736010096918,3.48389,3622.5,3622.2,0.27611]
[1736010098821,3.48389,3622.5,3622.1,2.0808023]
[1736010098822,3.2078,3622.5,3621.9,0.4579]
[1736010099117,0.27613,3622.1,3621.9,0.4579]
[1736010099310,3.2078,3622.5,3621.9,0.73403]
[1736010099311,0.9108,3622.0,3621.9,0.73403]
[1736010102516,1.18693,3622.0,3621.9,0.73403]
[1736010102718,0.9108,3622.0,3621.9,0.73403]
[1736010104629,1.18693,3622.0,3621.9,0.73403]
[1736010105022,0.9108,3622.0,3621.9,0.73403]
[1736010107819,0.9108,3622.0,3621.9,0.27613]
[1736010108323,0.27615,3621.8,3621.7,0.27615]
[1736010108715,0.27615,3621.8,3621.6,0.4438]
[1736010108922,0.27615,3621.7,3621.6,0.71995]
[1736010109325,2.4795,3622.0,3621.7,0.27614]
[1736010109326,0.27615,3621.8,3621.7,0.27614]
[1736010111928,0.27614,3621.9,3621.8,0.27614]
[1736010114715,0.27613,3621.9,3621.8,0.27614]
[1736010115925,2.75563,3622.0,3621.8,0.27614]
[1736010116320,2.75563,3622.0,3621.4,5.2886023]
[1736010116321,2.4795,3622.0,3621.4,5.2886023]
[1736010116527,0.27615,3621.8,3621.6,0.27615]
[1736010116820,0.27615,3621.8,3621.1,2.0808023]
[1736010116821,0.27614,3621.9,3621.7,0.27615]
[1736010117028,5.96343,3622.0,3621.8,0.27614]
[1736010117629,5.6873,3622.0,3621.2,0.69048]
[1736010117823,0.27613,3621.9,3621.7,0.27615]
[1736010118222,5.6873,3622.0,3621.2,2.7712823]
[1736010118424,0.27615,3621.8,3621.6,0.27615]
[1736010119428,0.27615,3621.7,3621.5,0.27616]
[1736010120325,3.24339269,3621.9,3621.0,3.675]
[1736010120727,0.27615,3621.7,3621.5,0.27616]
[1736010120936,0.27615,3621.8,3621.2,2.0808023]
[1736010121123,0.27615,3621.8,3621.5,0.27616]
[1736010121431,0.27615,3621.7,3621.5,0.27616]
[1736010121924,0.27615,3621.7,3621.4,0.27617]
[1736010122126,0.27615,3621.7,3621.2,2.0808023]
[1736010122325,3.24339269,3621.8,3621.2,2.0808023]
[1736010122533,3.24339269,3621.8,3621.7,0.27615]
[1736010123328,3.24339269,3621.8,3621.6,0.4784]
[1736010123529,0.27615,3621.8,3621.6,0.75455]
[1736010124331,0.27615,3621.7,3621.5,0.27616]
[1736010124634,0.27616,3621.6,3621.4,0.27617]
[1736010124836,0.27617,3621.5,3621.3,0.27617]
[1736010125036,0.8955,3621.4,3621.3,0.27617]
[1736010125731,0.4536,3621.4,3621.3,0.27617]
[1736010125932,3.69899269,3621.7,3621.6,0.27616]
[1736010126932,0.4556,3621.7,3621.6,0.27616]
[1736010127939,0.73175,3621.7,3621.5,0.27616]
[1736010128233,0.27617,3621.5,3621.4,3.2078]
[1736010130135,0.27616,3621.6,3621.4,3.48397]
[1736010130339,3.51955269,3621.6,3621.4,3.48397]
[1736010131030,0.27617,3621.5,3621.4,3.2078]
[1736010135436,2.44498772,3621.5,3621.4,3.2078]
[1736010137136,0.27617,3621.5,3621.4,3.2078]
[1736010138739,0.27618,3621.3,3621.1,3.48399]
[1736010138936,0.4717,3621.2,3621.1,3.48399]
[1736010139138,0.9602,3621.2,3621.1,3.48399]
[1736010142145,1.23639,3621.2,3621.1,3.2078]
[1736010143441,0.9602,3621.2,3621.1,3.484]
[1736010144044,1.23639,3621.2,3621.1,3.484]
[1736010145250,0.9602,3621.2,3621.1,3.484]
[1736010145745,0.9602,3621.2,3621.1,0.2762]
[1736010145945,0.9602,3621.2,3621.1,3.484]
[1736010146344,1.23639,3621.2,3621.1,3.484]